[Event "Early-Titled-Tuesday-Blitz-April-23-2024"]
[Site "Chess.com"]
[Date "2024.04.23"]
[Round "4"]
[White "chesslh93"]
[Black "SpongeBob_03"]
[Result "1-0"]
[WhiteElo "2387"]
[BlackElo "2261"]
[TimeControl "180+1"]
[EndTime "8:41:44 PDT"]
[Termination "chesslh93 won by resignation"]

1. e4 {[%clk 0:03:00.9]} 1... c5 {[%clk 0:02:59.5]} 2. Nf3 {[%clk 0:03:01.3]}
2... e6 {[%clk 0:02:57.9]} 3. d4 {[%clk 0:03:01.6]} 3... cxd4 {[%clk 0:02:57.5]}
4. Nxd4 {[%clk 0:03:02.5]} 4... Nf6 {[%clk 0:02:55.2]} 5. Nc3 {[%clk 0:03:02.3]}
5... Nc6 {[%clk 0:02:53.7]} 6. Ndb5 {[%clk 0:03:02.3]} 6... Bb4 {[%clk 0:02:53]}
7. a3 {[%clk 0:03:02.4]} 7... Bxc3+ {[%clk 0:02:52.9]} 8. Nxc3 {[%clk
0:03:03.3]} 8... d5 {[%clk 0:02:53]} 9. exd5 {[%clk 0:03:03]} 9... exd5 {[%clk
0:02:53.9]} 10. Bd3 {[%clk 0:03:02.5]} 10... d4 {[%clk 0:02:53.9]} 11. Ne2
{[%clk 0:02:48.4]} 11... Bg4 {[%clk 0:02:53.5]} 12. O-O {[%clk 0:02:46]} 12...
O-O {[%clk 0:02:50.7]} 13. Bg5 {[%clk 0:02:41.5]} 13... h6 {[%clk 0:02:48.6]}
14. Bh4 {[%clk 0:02:41]} 14... Re8 {[%clk 0:02:38.9]} 15. f3 {[%clk 0:02:40.3]}
15... Bh5 {[%clk 0:02:04.3]} 16. Bf2 {[%clk 0:02:39.9]} 16... Qd5 {[%clk
0:01:57]} 17. Nf4 {[%clk 0:02:08]} 17... Qg5 {[%clk 0:01:56.3]} 18. Nxh5 {[%clk
0:02:07.3]} 18... Nxh5 {[%clk 0:01:55.5]} 19. Kh1 {[%clk 0:01:50.8]} 19... Nf4
{[%clk 0:01:55]} 20. Bg3 {[%clk 0:01:45]} 20... Nd5 {[%clk 0:01:54.8]} 21. Re1
{[%clk 0:01:34.8]} 21... Ne3 {[%clk 0:01:45.3]} 22. Qe2 {[%clk 0:01:16.4]} 22...
f5 {[%clk 0:01:43.1]} 23. f4 {[%clk 0:01:07.2]} 23... Qg6 {[%clk 0:01:40]} 24.
Qf3 {[%clk 0:01:05.5]} 24... Kh8 {[%clk 0:01:15.5]} 25. Bf2 {[%clk 0:01:05]}
25... Ng4 {[%clk 0:01:14]} 26. Bg1 {[%clk 0:00:57.2]} 26... Qh5 {[%clk
0:00:15.6]} 27. h3 {[%clk 0:00:33.8]} 27... Qh4 {[%clk 0:00:15.8]} 28. Rf1
{[%clk 0:00:25.9]} 28... Ne3 {[%clk 0:00:13.5]} 29. Rfe1 {[%clk 0:00:10.5]}
29... Ng4 {[%clk 0:00:04.8]} 30. Re2 {[%clk 0:00:06.7]} 30... Ne3 {[%clk
0:00:04.9]} 31. Bxe3 {[%clk 0:00:05.4]} 31... dxe3 {[%clk 0:00:04.9]} 32. Rxe3
{[%clk 0:00:05.3]} 32... Rxe3 {[%clk 0:00:05.8]} 33. Qxe3 {[%clk 0:00:05.5]}
33... Rf8 {[%clk 0:00:05.6]} 34. Qe1 {[%clk 0:00:04.5]} 34... Qf6 {[%clk
0:00:06.5]} 35. c3 {[%clk 0:00:04.2]} 35... Ne7 {[%clk 0:00:06.5]} 36. Qe5
{[%clk 0:00:03.9]} 36... Ng6 {[%clk 0:00:07.4]} 37. Qxf6 {[%clk 0:00:04.1]}
37... Rxf6 {[%clk 0:00:08.3]} 38. Re1 {[%clk 0:00:04.6]} 38... Nxf4 {[%clk
0:00:08.4]} 39. Bc4 {[%clk 0:00:04.6]} 39... Kh7 {[%clk 0:00:07.4]} 40. Re7
{[%clk 0:00:04.5]} 40... Rb6 {[%clk 0:00:06.9]} 41. b4 {[%clk 0:00:04.7]} 41...
Ng6 {[%clk 0:00:07.1]} 42. Rc7 {[%clk 0:00:04.1]} 42... Ne5 {[%clk 0:00:07.2]}
43. Bb3 {[%clk 0:00:03.9]} 43... Kg6 {[%clk 0:00:06.5]} 44. c4 {[%clk
0:00:03.7]} 44... Rc6 {[%clk 0:00:06.8]} 45. Rxb7 {[%clk 0:00:03]} 45... a6
{[%clk 0:00:07.3]} 46. b5 {[%clk 0:00:02.9]} 46... axb5 {[%clk 0:00:07.8]} 47.
cxb5 {[%clk 0:00:02.6]} 47... Rc1+ {[%clk 0:00:08.7]} 48. Kh2 {[%clk 0:00:03]}
48... Rb1 {[%clk 0:00:09.6]} 49. Bd5 {[%clk 0:00:02.2]} 49... Rb2 {[%clk
0:00:09.1]} 50. a4 {[%clk 0:00:01.9]} 50... Kg5 {[%clk 0:00:07.9]} 51. a5 {[%clk
0:00:02.2]} 51... g6 {[%clk 0:00:08]} 52. a6 {[%clk 0:00:02.1]} 52... f4 {[%clk
0:00:08.6]} 53. a7 {[%clk 0:00:01.8]} 53... f3 {[%clk 0:00:09.1]} 54. Bxf3
{[%clk 0:00:01.6]} 54... Nxf3+ {[%clk 0:00:09]} 55. Kg3 {[%clk 0:00:02.3]} 55...
Ra2 {[%clk 0:00:08]} 56. Kxf3 {[%clk 0:00:02.2]} 56... Kh4 {[%clk 0:00:08]} 57.
b6 {[%clk 0:00:02.4]} 57... g5 {[%clk 0:00:08.5]} 58. Rb8 {[%clk 0:00:02.6]}
58... h5 {[%clk 0:00:09]} 59. a8=Q {[%clk 0:00:02.5]} 59... g4+ {[%clk
0:00:08.9]} 60. hxg4 {[%clk 0:00:03]} 60... hxg4+ {[%clk 0:00:09.6]} 61. Ke4
{[%clk 0:00:03.5]} 61... Re2+ {[%clk 0:00:09.4]} 62. Kd3 {[%clk 0:00:03.7]}
62... Rd2+ {[%clk 0:00:08.3]} 63. Kxd2 {[%clk 0:00:03.8]} 63... Kg3 {[%clk
0:00:09.2]} 64. Rg8 {[%clk 0:00:03.7]} 64... Kh2 {[%clk 0:00:09.1]} 65. Rxg4
{[%clk 0:00:03.8]} 65... Kg1 {[%clk 0:00:10]} 66. Rg8 {[%clk 0:00:04.1]} 1-0

[Event "Early-Titled-Tuesday-Blitz-April-23-2024"]
[Site "Chess.com"]
[Date "2024.04.23"]
[Round "4"]
[White "chess_blitz00"]
[Black "JJDAREK"]
[Result "0-1"]
[WhiteElo "2522"]
[BlackElo "2343"]
[TimeControl "180+1"]
[EndTime "8:41:48 PDT"]
[Termination "JJDAREK won by resignation"]

1. b3 {[%clk 0:03:00.9]} 1... d5 {[%clk 0:02:56.3]} 2. Bb2 {[%clk 0:03:01.8]}
2... c6 {[%clk 0:02:56.2]} 3. e3 {[%clk 0:03:02.4]} 3... Bf5 {[%clk 0:02:55.7]}
4. Nf3 {[%clk 0:03:02.3]} 4... e6 {[%clk 0:02:55.8]} 5. Be2 {[%clk 0:03:01.7]}
5... h6 {[%clk 0:02:56.1]} 6. O-O {[%clk 0:03:00.5]} 6... Nf6 {[%clk 0:02:56.2]}
7. c4 {[%clk 0:02:59.9]} 7... Be7 {[%clk 0:02:56.1]} 8. Nc3 {[%clk 0:03:00]}
8... O-O {[%clk 0:02:55.7]} 9. d3 {[%clk 0:03:00.3]} 9... Nbd7 {[%clk
0:02:54.8]} 10. Qc2 {[%clk 0:03:00.7]} 10... a5 {[%clk 0:02:54]} 11. a3 {[%clk
0:02:52.5]} 11... Bh7 {[%clk 0:02:49.5]} 12. Rac1 {[%clk 0:02:40.5]} 12... Rc8
{[%clk 0:02:46.3]} 13. Rfd1 {[%clk 0:02:38.1]} 13... b5 {[%clk 0:02:42.2]} 14.
Qd2 {[%clk 0:02:31]} 14... bxc4 {[%clk 0:02:37.5]} 15. bxc4 {[%clk 0:02:24.3]}
15... Nc5 {[%clk 0:02:35.7]} 16. Qe1 {[%clk 0:02:17.8]} 16... Nb3 {[%clk
0:02:32.7]} 17. Rb1 {[%clk 0:02:17.1]} 17... dxc4 {[%clk 0:02:24]} 18. dxc4
{[%clk 0:02:12.6]} 18... Qc7 {[%clk 0:02:23.4]} 19. Bd3 {[%clk 0:02:04.6]} 19...
Bxd3 {[%clk 0:02:13.1]} 20. Rxd3 {[%clk 0:02:05.5]} 20... Nc5 {[%clk 0:02:13.6]}
21. Rdd1 {[%clk 0:02:00.2]} 21... Rfd8 {[%clk 0:02:09.9]} 22. Rxd8+ {[%clk
0:01:33.4]} 22... Rxd8 {[%clk 0:02:08.6]} 23. Rd1 {[%clk 0:01:34.3]} 23... Nd3
{[%clk 0:02:05.6]} 24. Qe2 {[%clk 0:01:29.2]} 24... Nxb2 {[%clk 0:02:03.6]} 25.
Qxb2 {[%clk 0:01:22.5]} 25... Rxd1+ {[%clk 0:01:45.7]} 26. Nxd1 {[%clk
0:01:23.4]} 26... Qd6 {[%clk 0:01:45.9]} 27. Qb1 {[%clk 0:00:18.1]} 27... Qxa3
{[%clk 0:01:40.2]} 28. Nd4 {[%clk 0:00:11.6]} 28... Qc5 {[%clk 0:01:02.3]} 29.
Qb8+ {[%clk 0:00:09]} 29... Kh7 {[%clk 0:01:01.7]} 30. Qb1+ {[%clk 0:00:07.6]}
30... g6 {[%clk 0:01:00.1]} 31. Nb2 {[%clk 0:00:06.8]} 31... Qb6 {[%clk
0:00:45.6]} 32. Qc2 {[%clk 0:00:07.1]} 32... e5 {[%clk 0:00:32.1]} 33. Nf3
{[%clk 0:00:07.1]} 33... e4 {[%clk 0:00:23.5]} 34. Ne5 {[%clk 0:00:05.9]} 34...
Kg7 {[%clk 0:00:22.9]} 35. g3 {[%clk 0:00:03.7]} 35... Bd6 {[%clk 0:00:18.9]}
36. Qc3 {[%clk 0:00:02.9]} 36... Bxe5 {[%clk 0:00:17.4]} 37. Qxe5 {[%clk
0:00:03.8]} 37... Qb3 {[%clk 0:00:13.1]} 38. g4 {[%clk 0:00:03.9]} 38... g5
{[%clk 0:00:11.5]} 39. Kg2 {[%clk 0:00:03.5]} 39... a4 {[%clk 0:00:11.5]} 40. c5
{[%clk 0:00:02.8]} 40... a3 {[%clk 0:00:10.5]} 41. Nc4 {[%clk 0:00:02.1]} 41...
Qxc4 {[%clk 0:00:10]} 42. Qa1 {[%clk 0:00:02.2]} 42... Qb5 {[%clk 0:00:09]} 43.
Qxa3 {[%clk 0:00:01.5]} 43... Qe2 {[%clk 0:00:08.2]} 44. Qc3 {[%clk 0:00:01.5]}
44... Qxg4+ {[%clk 0:00:08]} 45. Kf1 {[%clk 0:00:02.2]} 45... Qf3 {[%clk
0:00:07.8]} 46. Kg1 {[%clk 0:00:01.9]} 46... Qf5 {[%clk 0:00:07.6]} 47. Kg2
{[%clk 0:00:01.6]} 47... Qd5 {[%clk 0:00:07.9]} 48. h3 {[%clk 0:00:01.5]} 48...
Kg6 {[%clk 0:00:08.4]} 49. Kg3 {[%clk 0:00:02.1]} 49... h5 {[%clk 0:00:08.8]}
50. Kg2 {[%clk 0:00:02.8]} 50... h4 {[%clk 0:00:08.6]} 51. Kh2 {[%clk
0:00:03.3]} 51... Nd7 {[%clk 0:00:08.4]} 52. Kg2 {[%clk 0:00:03.5]} 52... Nxc5
{[%clk 0:00:08]} 53. Qh8 {[%clk 0:00:03.7]} 53... Ne6 {[%clk 0:00:08.2]} 54.
Qg8+ {[%clk 0:00:03.9]} 54... Kf6 {[%clk 0:00:08.3]} 55. Qh8+ {[%clk 0:00:04.2]}
55... Ke7 {[%clk 0:00:08.8]} 56. Qg8 {[%clk 0:00:04.4]} 56... c5 {[%clk
0:00:08.5]} 57. Qb8 {[%clk 0:00:04.5]} 57... c4 {[%clk 0:00:08.6]} 58. Qa7+
{[%clk 0:00:04.7]} 58... Kf6 {[%clk 0:00:08.9]} 59. Qa1+ {[%clk 0:00:04.4]}
59... Qe5 {[%clk 0:00:08.9]} 60. Qa8 {[%clk 0:00:02.1]} 60... c3 {[%clk
0:00:09.2]} 61. Qh8+ {[%clk 0:00:02.3]} 61... Kf5 {[%clk 0:00:09.3]} 62. Qh7+
{[%clk 0:00:02.5]} 62... Kf6 {[%clk 0:00:05.6]} 63. Qh8+ {[%clk 0:00:03.2]}
63... Ng7 {[%clk 0:00:06.1]} 64. Qd8+ {[%clk 0:00:02]} 64... Kg6 {[%clk
0:00:05.9]} 65. Qc8 {[%clk 0:00:02.3]} 65... f6 {[%clk 0:00:05]} 66. Qc4 {[%clk
0:00:02]} 66... Kh7 {[%clk 0:00:05]} 67. Qc8 {[%clk 0:00:01.7]} 67... Qf5 {[%clk
0:00:04.6]} 68. Qxc3 {[%clk 0:00:01.4]} 68... g4 {[%clk 0:00:05]} 69. hxg4
{[%clk 0:00:01.6]} 69... Qxg4+ {[%clk 0:00:05.9]} 70. Kf1 {[%clk 0:00:02.3]}
70... h3 {[%clk 0:00:06.4]} 71. Qxf6 {[%clk 0:00:02.7]} 71... Qg2+ {[%clk
0:00:06.1]} 72. Ke1 {[%clk 0:00:02.9]} 72... Qg1+ {[%clk 0:00:06]} 73. Ke2
{[%clk 0:00:02.7]} 73... Qg4+ {[%clk 0:00:05.6]} 74. Kd2 {[%clk 0:00:03.2]}
74... h2 {[%clk 0:00:06.2]} 75. Qe5 {[%clk 0:00:02.1]} 75... h1=Q {[%clk
0:00:05.7]} 76. Qd6 {[%clk 0:00:01.3]} 76... Qhf3 {[%clk 0:00:05.6]} 77. Qd5
{[%clk 0:00:01.1]} 77... Qe2+ {[%clk 0:00:05.5]} 78. Kc3 {[%clk 0:00:02]} 78...
Qd3+ {[%clk 0:00:05.4]} 79. Qxd3 {[%clk 0:00:02.1]} 79... exd3 {[%clk
0:00:06.3]} 80. Kd2 {[%clk 0:00:02.7]} 80... Qf3 {[%clk 0:00:06.6]} 81. Kxd3
{[%clk 0:00:03.6]} 81... Nf5 {[%clk 0:00:07.1]} 82. Kc4 {[%clk 0:00:03.4]} 82...
Qxf2 {[%clk 0:00:07.6]} 83. Kd5 {[%clk 0:00:04.3]} 83... Nxe3+ {[%clk 0:00:08]}
0-1

[Event "Early-Titled-Tuesday-Blitz-April-23-2024"]
[Site "Chess.com"]
[Date "2024.04.23"]
[Round "4"]
[White "guillembaches"]
[Black "KnightDuta"]
[Result "1-0"]
[WhiteElo "2585"]
[BlackElo "2757"]
[TimeControl "180+1"]
[EndTime "8:41:58 PDT"]
[Termination "guillembaches won by checkmate"]

1. e4 {[%clk 0:03:00.9]} 1... c5 {[%clk 0:02:59.9]} 2. Nf3 {[%clk 0:03:01.2]}
2... Nc6 {[%clk 0:03:00.3]} 3. d4 {[%clk 0:03:01.5]} 3... cxd4 {[%clk
0:03:01.2]} 4. Nxd4 {[%clk 0:03:02.1]} 4... Nf6 {[%clk 0:03:01.9]} 5. Nc3 {[%clk
0:03:01.9]} 5... e5 {[%clk 0:03:02.5]} 6. Ndb5 {[%clk 0:03:02]} 6... d6 {[%clk
0:03:03.2]} 7. Nd5 {[%clk 0:03:02.3]} 7... Nxd5 {[%clk 0:03:02.8]} 8. exd5
{[%clk 0:03:02.9]} 8... Nb8 {[%clk 0:03:03.7]} 9. a4 {[%clk 0:02:59.4]} 9... Be7
{[%clk 0:03:00.9]} 10. Be2 {[%clk 0:02:59]} 10... O-O {[%clk 0:03:00.9]} 11. Bd2
{[%clk 0:02:59.1]} 11... f5 {[%clk 0:02:58.6]} 12. a5 {[%clk 0:02:58.3]} 12...
a6 {[%clk 0:02:58.2]} 13. Na3 {[%clk 0:02:58.4]} 13... Nd7 {[%clk 0:02:49.8]}
14. Nc4 {[%clk 0:02:56.9]} 14... Nf6 {[%clk 0:02:49.4]} 15. Bb4 {[%clk
0:02:53.9]} 15... Ne8 {[%clk 0:02:32.1]} 16. O-O {[%clk 0:02:45.2]} 16... Bd7
{[%clk 0:02:30.8]} 17. Nb6 {[%clk 0:02:38]} 17... Rb8 {[%clk 0:02:30.3]} 18. c4
{[%clk 0:02:35.1]} 18... Bf6 {[%clk 0:02:22.2]} 19. c5 {[%clk 0:02:29.1]} 19...
e4 {[%clk 0:01:54.3]} 20. Qb3 {[%clk 0:02:16.6]} 20... Kh8 {[%clk 0:01:50.8]}
21. cxd6 {[%clk 0:02:08.4]} 21... f4 {[%clk 0:01:42.5]} 22. Rfe1 {[%clk
0:01:49.9]} 22... Be5 {[%clk 0:01:11.9]} 23. Bf1 {[%clk 0:01:30]} 23... Nf6
{[%clk 0:00:58.6]} 24. Nc4 {[%clk 0:01:20.2]} 24... Qe8 {[%clk 0:00:40.6]} 25.
Nxe5 {[%clk 0:01:10.9]} 25... Qxe5 {[%clk 0:00:41.5]} 26. Bc3 {[%clk 0:01:09.4]}
26... Qf5 {[%clk 0:00:33.7]} 27. Qc4 {[%clk 0:00:55]} 27... Bb5 {[%clk
0:00:24.3]} 28. Qd4 {[%clk 0:00:52.9]} 28... Bxf1 {[%clk 0:00:24]} 29. Rxf1
{[%clk 0:00:52.7]} 29... f3 {[%clk 0:00:21.9]} 30. Qe5 {[%clk 0:00:48.5]} 30...
Qg4 {[%clk 0:00:11.2]} 31. Qg3 {[%clk 0:00:45.8]} 31... Qxg3 {[%clk 0:00:11.3]}
32. hxg3 {[%clk 0:00:45.8]} 32... Nxd5 {[%clk 0:00:11.9]} 33. Rfe1 {[%clk
0:00:40.8]} 33... Nxc3 {[%clk 0:00:10.4]} 34. bxc3 {[%clk 0:00:40]} 34... fxg2
{[%clk 0:00:07.4]} 35. Rxe4 {[%clk 0:00:37.9]} 35... Rbd8 {[%clk 0:00:08.1]} 36.
Rd1 {[%clk 0:00:37.3]} 36... Rd7 {[%clk 0:00:06.3]} 37. Kxg2 {[%clk 0:00:35.2]}
37... Kg8 {[%clk 0:00:06.4]} 38. c4 {[%clk 0:00:33.8]} 38... Rc8 {[%clk
0:00:05.7]} 39. Rd5 {[%clk 0:00:29.9]} 39... Rc6 {[%clk 0:00:03]} 40. c5 {[%clk
0:00:29.7]} 40... Rc8 {[%clk 0:00:03.4]} 41. g4 {[%clk 0:00:28]} 41... Kf7
{[%clk 0:00:03.3]} 42. Rf5+ {[%clk 0:00:27.3]} 42... Kg8 {[%clk 0:00:03.9]} 43.
g5 {[%clk 0:00:27.2]} 43... g6 {[%clk 0:00:04.4]} 44. Rfe5 {[%clk 0:00:27.4]}
44... Rcd8 {[%clk 0:00:03.5]} 45. f4 {[%clk 0:00:26.6]} 45... Kf7 {[%clk
0:00:02.2]} 46. Re7+ {[%clk 0:00:26.5]} 46... Kf8 {[%clk 0:00:02.7]} 47. Kg3
{[%clk 0:00:26.2]} 47... Kg8 {[%clk 0:00:02.6]} 48. Kg4 {[%clk 0:00:25.1]} 48...
Kf8 {[%clk 0:00:03.2]} 49. f5 {[%clk 0:00:25.2]} 49... gxf5+ {[%clk 0:00:03.6]}
50. Kxf5 {[%clk 0:00:25.5]} 50... Kg8 {[%clk 0:00:04.5]} 51. Kf6 {[%clk
0:00:25.6]} 51... Rf8+ {[%clk 0:00:03.1]} 52. Ke6 {[%clk 0:00:25.5]} 52... Rdd8
{[%clk 0:00:04]} 53. d7 {[%clk 0:00:24.3]} 53... Rf3 {[%clk 0:00:03.7]} 54. Kd6
{[%clk 0:00:23.5]} 54... Rd3+ {[%clk 0:00:02.7]} 55. Kc7 {[%clk 0:00:23.6]}
55... Rf8 {[%clk 0:00:03.5]} 56. Re8 {[%clk 0:00:23.2]} 56... Rd5 {[%clk
0:00:03.9]} 57. Rxf8+ {[%clk 0:00:22.6]} 57... Kxf8 {[%clk 0:00:04.8]} 58. d8=Q+
{[%clk 0:00:23]} 58... Rxd8 {[%clk 0:00:05.7]} 59. Kxd8 {[%clk 0:00:23.5]} 59...
Kg7 {[%clk 0:00:06.6]} 60. Rb4 {[%clk 0:00:23.7]} 60... Kg6 {[%clk 0:00:07.5]}
61. Rxb7 {[%clk 0:00:24]} 61... Kxg5 {[%clk 0:00:08.4]} 62. Rxh7 {[%clk
0:00:23.9]} 62... Kf5 {[%clk 0:00:09.3]} 63. Ra7 {[%clk 0:00:24.5]} 63... Ke6
{[%clk 0:00:09.9]} 64. Rxa6+ {[%clk 0:00:25.1]} 64... Kd5 {[%clk 0:00:10.8]} 65.
Rb6 {[%clk 0:00:25.5]} 65... Kxc5 {[%clk 0:00:11.2]} 66. Rb1 {[%clk 0:00:26.1]}
66... Kc6 {[%clk 0:00:11.5]} 67. Ke7 {[%clk 0:00:26.6]} 67... Kc5 {[%clk
0:00:12.4]} 68. Kf6 {[%clk 0:00:27]} 68... Kc4 {[%clk 0:00:13.3]} 69. Kg5 {[%clk
0:00:27.4]} 69... Kc3 {[%clk 0:00:13.7]} 70. Kh4 {[%clk 0:00:27.7]} 70... Kc2
{[%clk 0:00:14.6]} 71. Rb8 {[%clk 0:00:27.8]} 71... Kc3 {[%clk 0:00:15]} 72. Rb7
{[%clk 0:00:27.7]} 72... Kc4 {[%clk 0:00:15.9]} 73. a6 {[%clk 0:00:28.1]} 73...
Kc5 {[%clk 0:00:16.8]} 74. a7 {[%clk 0:00:28.2]} 74... Kc6 {[%clk 0:00:17.7]}
75. Rb1 {[%clk 0:00:28.6]} 75... Kc5 {[%clk 0:00:18.6]} 76. Kg3 {[%clk 0:00:29]}
76... Kc4 {[%clk 0:00:19.5]} 77. Kf2 {[%clk 0:00:29.4]} 77... Kc3 {[%clk
0:00:20.4]} 78. Ke3 {[%clk 0:00:29.6]} 78... Kc2 {[%clk 0:00:21.3]} 79. Rb7
{[%clk 0:00:29.9]} 79... Kc3 {[%clk 0:00:21.3]} 80. Ke4 {[%clk 0:00:30.2]} 80...
Kc4 {[%clk 0:00:22.2]} 81. Ke5 {[%clk 0:00:30.5]} 81... Kc5 {[%clk 0:00:23.1]}
82. Rb1 {[%clk 0:00:30.4]} 82... Kc4 {[%clk 0:00:24]} 83. a8=Q {[%clk
0:00:30.5]} 83... Kd3 {[%clk 0:00:24.9]} 84. Qa2 {[%clk 0:00:30.5]} 84... Kc3
{[%clk 0:00:24.9]} 85. Rb3+ {[%clk 0:00:30.8]} 85... Kc4 {[%clk 0:00:25.8]} 86.
Qa4+ {[%clk 0:00:30.8]} 86... Kc5 {[%clk 0:00:26.7]} 87. Rb5+ {[%clk 0:00:31]}
87... Kc6 {[%clk 0:00:26.6]} 88. Qa6+ {[%clk 0:00:31.3]} 88... Kc7 {[%clk
0:00:27.4]} 89. Rb7+ {[%clk 0:00:31.2]} 89... Kc8 {[%clk 0:00:28.1]} 90. Qa7
{[%clk 0:00:30.2]} 90... Kd8 {[%clk 0:00:24.1]} 91. Ke6 {[%clk 0:00:28]} 91...
Ke8 {[%clk 0:00:24.2]} 92. Qb8# {[%clk 0:00:26.1]} 1-0

[Event "Early-Titled-Tuesday-Blitz-April-23-2024"]
[Site "Chess.com"]
[Date "2024.04.23"]
[Round "4"]
[White "platy3"]
[Black "Msb2"]
[Result "1/2-1/2"]
[WhiteElo "2885"]
[BlackElo "3076"]
[TimeControl "180+1"]
[EndTime "8:41:59 PDT"]
[Termination "Game drawn by stalemate"]

1. e4 {[%clk 0:03:00.9]} 1... e6 {[%clk 0:03:00.4]} 2. d4 {[%clk 0:02:59]} 2...
d5 {[%clk 0:03:00.8]} 3. Nc3 {[%clk 0:02:59.2]} 3... Nf6 {[%clk 0:03:01]} 4. e5
{[%clk 0:02:58.2]} 4... Nfd7 {[%clk 0:03:01.6]} 5. f4 {[%clk 0:02:58.7]} 5... c5
{[%clk 0:03:02.3]} 6. Nf3 {[%clk 0:02:59.4]} 6... Nc6 {[%clk 0:03:03]} 7. Be3
{[%clk 0:03:00.1]} 7... a6 {[%clk 0:03:03.7]} 8. Qd2 {[%clk 0:02:53.1]} 8... b5
{[%clk 0:03:03.4]} 9. dxc5 {[%clk 0:02:53.6]} 9... Bxc5 {[%clk 0:03:04.3]} 10.
Bd3 {[%clk 0:02:54.1]} 10... Qb6 {[%clk 0:03:04.3]} 11. Bf2 {[%clk 0:02:54.5]}
11... Bb7 {[%clk 0:03:05]} 12. O-O {[%clk 0:02:54.2]} 12... h6 {[%clk
0:03:05.1]} 13. Bxc5 {[%clk 0:02:52]} 13... Nxc5 {[%clk 0:03:06]} 14. Qf2 {[%clk
0:02:52.1]} 14... b4 {[%clk 0:03:03.9]} 15. Ne2 {[%clk 0:02:50.7]} 15... a5
{[%clk 0:03:04.3]} 16. a4 {[%clk 0:02:39]} 16... Ba6 {[%clk 0:03:02]} 17. Rfd1
{[%clk 0:02:31]} 17... O-O {[%clk 0:02:57.1]} 18. b3 {[%clk 0:02:12]} 18... f5
{[%clk 0:02:27.1]} 19. Kh1 {[%clk 0:02:02.1]} 19... Rfb8 {[%clk 0:02:15.7]} 20.
Rab1 {[%clk 0:01:51.2]} 20... Ne4 {[%clk 0:01:58.6]} 21. Qxb6 {[%clk 0:01:46.4]}
21... Rxb6 {[%clk 0:01:59.5]} 22. Kg1 {[%clk 0:01:37.5]} 22... Rc8 {[%clk
0:01:56.5]} 23. Rbc1 {[%clk 0:01:28.8]} 23... Nd8 {[%clk 0:01:42.5]} 24. Ned4
{[%clk 0:01:25.1]} 24... Rc3 {[%clk 0:01:28.4]} 25. Ne2 {[%clk 0:01:16]} 25...
Rc5 {[%clk 0:01:26.3]} 26. Ned4 {[%clk 0:01:14.6]} 26... Rc3 {[%clk 0:01:24.4]}
27. h3 {[%clk 0:01:12.1]} 27... Nb7 {[%clk 0:01:17.8]} 28. Ne2 {[%clk
0:01:04.7]} 28... Rc8 {[%clk 0:01:17.5]} 29. Nfd4 {[%clk 0:01:00]} 29... Nbc5
{[%clk 0:01:14.6]} 30. Bxa6 {[%clk 0:00:50.4]} 30... Rxa6 {[%clk 0:01:15.5]} 31.
g4 {[%clk 0:00:46.9]} 31... g6 {[%clk 0:01:15.1]} 32. Kg2 {[%clk 0:00:42.1]}
32... Kf7 {[%clk 0:01:12.3]} 33. Kf3 {[%clk 0:00:41.8]} 33... Nd7 {[%clk
0:00:50.8]} 34. Ke3 {[%clk 0:00:39.5]} 34... Ndc5 {[%clk 0:00:37.4]} 35. gxf5
{[%clk 0:00:39.3]} 35... gxf5 {[%clk 0:00:38.1]} 36. Rg1 {[%clk 0:00:39]} 36...
Raa8 {[%clk 0:00:38.2]} 37. Rg2 {[%clk 0:00:38.5]} 37... Rg8 {[%clk 0:00:37.8]}
38. Rcg1 {[%clk 0:00:39.1]} 38... Rxg2 {[%clk 0:00:38]} 39. Rxg2 {[%clk
0:00:40]} 39... Rc8 {[%clk 0:00:38.1]} 40. h4 {[%clk 0:00:36.2]} 40... Nd7
{[%clk 0:00:34.1]} 41. h5 {[%clk 0:00:33.6]} 41... Nf8 {[%clk 0:00:34.5]} 42.
Nc1 {[%clk 0:00:25.3]} 42... Rc3+ {[%clk 0:00:33.1]} 43. Nd3 {[%clk 0:00:25.8]}
43... Rc8 {[%clk 0:00:33.1]} 44. Nb5 {[%clk 0:00:22.6]} 44... Rc6 {[%clk
0:00:31.1]} 45. Kd4 {[%clk 0:00:12.3]} 45... Rc8 {[%clk 0:00:31.3]} 46. Nd6+
{[%clk 0:00:12]} 46... Nxd6 {[%clk 0:00:30.4]} 47. exd6 {[%clk 0:00:12.9]} 47...
Nd7 {[%clk 0:00:23.5]} 48. Rg6 {[%clk 0:00:12.7]} 48... Rxc2 {[%clk 0:00:15.6]}
49. Rxh6 {[%clk 0:00:13.1]} 49... Re2 {[%clk 0:00:16.3]} 50. Rh7+ {[%clk
0:00:12.6]} 50... Ke8 {[%clk 0:00:16.5]} 51. Re7+ {[%clk 0:00:11.6]} 51... Kd8
{[%clk 0:00:16.8]} 52. Nc5 {[%clk 0:00:04.8]} 52... Nxc5 {[%clk 0:00:14.4]} 53.
Kxc5 {[%clk 0:00:05.7]} 53... Rc2+ {[%clk 0:00:15.1]} 54. Kd4 {[%clk 0:00:05.7]}
54... Rd2+ {[%clk 0:00:15.8]} 55. Ke5 {[%clk 0:00:06.1]} 55... Rh2 {[%clk
0:00:14]} 56. Rxe6 {[%clk 0:00:02.9]} 56... Rxh5 {[%clk 0:00:14.1]} 57. Kxd5
{[%clk 0:00:03.5]} 57... Rh3 {[%clk 0:00:13.9]} 58. Kc4 {[%clk 0:00:02.7]} 58...
Rc3+ {[%clk 0:00:14.1]} 59. Kb5 {[%clk 0:00:02.9]} 59... Rxb3 {[%clk 0:00:15]}
60. Kxa5 {[%clk 0:00:03.6]} 60... Rb1 {[%clk 0:00:15]} 61. Re5 {[%clk
0:00:02.7]} 61... b3 {[%clk 0:00:14.2]} 62. Rxf5 {[%clk 0:00:02.6]} 62... Kd7
{[%clk 0:00:12.9]} 63. Rb5 {[%clk 0:00:02.9]} 63... Kxd6 {[%clk 0:00:13.5]} 64.
f5 {[%clk 0:00:03.5]} 64... Kc6 {[%clk 0:00:13.5]} 65. Ka6 {[%clk 0:00:03.7]}
65... Kc7 {[%clk 0:00:13.7]} 66. a5 {[%clk 0:00:04.1]} 66... Rf1 {[%clk
0:00:13.2]} 67. Ka7 {[%clk 0:00:02.3]} 67... b2 {[%clk 0:00:12.3]} 68. Rxb2
{[%clk 0:00:02.5]} 68... Rxf5 {[%clk 0:00:13]} 69. a6 {[%clk 0:00:02.9]} 69...
Rf1 {[%clk 0:00:13]} 70. Rc2+ {[%clk 0:00:03.1]} 70... Kd7 {[%clk 0:00:13.4]}
71. Rh2 {[%clk 0:00:02.2]} 71... Rb1 {[%clk 0:00:13.6]} 72. Rh7+ {[%clk
0:00:02.8]} 72... Kc6 {[%clk 0:00:14.1]} 73. Rb7 {[%clk 0:00:03.7]} 73... Rh1
{[%clk 0:00:13.3]} 74. Rb8 {[%clk 0:00:03.8]} 74... Kc7 {[%clk 0:00:13.1]} 75.
Rb2 {[%clk 0:00:03.2]} 75... Rc1 {[%clk 0:00:12.4]} 76. Rh2 {[%clk 0:00:03.2]}
76... Rb1 {[%clk 0:00:12.4]} 77. Rh7+ {[%clk 0:00:03.2]} 77... Kc8 {[%clk
0:00:13]} 78. Rh8+ {[%clk 0:00:04.1]} 78... Kc7 {[%clk 0:00:13.5]} 79. Rh5
{[%clk 0:00:04.4]} 79... Rb2 {[%clk 0:00:13.4]} 80. Ka8 {[%clk 0:00:04.3]} 80...
Kc8 {[%clk 0:00:13.3]} 81. a7 {[%clk 0:00:02.5]} 81... Kc7 {[%clk 0:00:13.9]}
82. Rh7+ {[%clk 0:00:02.8]} 82... Kc8 {[%clk 0:00:14.2]} 83. Rh8+ {[%clk
0:00:03.7]} 83... Kc7 {[%clk 0:00:14.8]} 84. Rb8 {[%clk 0:00:04.3]} 84... Rh2
{[%clk 0:00:13.8]} 85. Rb7+ {[%clk 0:00:04.6]} 85... Kc8 {[%clk 0:00:14.4]} 86.
Rb1 {[%clk 0:00:04.6]} 86... Rc2 {[%clk 0:00:14.3]} 87. Rd1 {[%clk 0:00:04.1]}
87... Rb2 {[%clk 0:00:14]} 88. Rc1+ {[%clk 0:00:04.1]} 88... Kd7 {[%clk
0:00:14.6]} 89. Rc4 {[%clk 0:00:04.4]} 89... Rb1 {[%clk 0:00:14.6]} 90. Rh4
{[%clk 0:00:04]} 90... Kc7 {[%clk 0:00:14.9]} 91. Rh8 {[%clk 0:00:04]} 91... Rb2
{[%clk 0:00:14.8]} 92. Rh7+ {[%clk 0:00:04.5]} 92... Kc8 {[%clk 0:00:15]} 93.
Rb7 {[%clk 0:00:04.6]} 93... Rxb7 {[%clk 0:00:14.8]} 1/2-1/2